fUST/lending_fUST_20250627
["ID","MTS","AMOUNT","RATE_DAILY","PERIOD"]
[368130087,1751034641164,-489.79383217,0.00019178,2]
[368130089,1751034641173,-460.0,0.00019178,2]
[368130092,1751034641183,-460.0,0.00019178,2]
[368130094,1751034641193,-578.62,0.00019178,2]
[368130096,1751034641203,-460.0,0.00019178,2]
[368130097,1751034641214,-557.93,0.00019178,2]
[368130100,1751034641223,-460.0,0.00019178,2]
[368130102,1751034641233,-460.0,0.00019178,2]
[368130104,1751034641243,-460.0,0.00019178,2]
[368130106,1751034641252,-851.03,0.00019178,2]
[368130108,1751034641264,-460.0,0.00019178,2]
[368130110,1751034641274,-443.19302072,0.00019178,2]
[368130112,1751034641283,-460.0,0.00019178,2]
[368130114,1751034641293,-460.0,0.00019178,2]
[368130116,1751034641302,-460.0,0.00019178,2]
[368130118,1751034641312,-460.0,0.00019178,2]
[368130120,1751034641322,-460.0,0.00019178,2]
[368130122,1751034641331,-460.0,0.00019178,2]
[368130124,1751034641340,-460.53038779,0.00019178,2]
[368130125,1751034641349,-460.0,0.00019178,2]
[368130127,1751034641358,-460.0,0.00019178,2]
[368130129,1751034641367,-460.0,0.00019178,2]
[368130130,1751034641377,-1948.1,0.00019178,2]
[368130132,1751034641387,-460.0,0.00019178,2]
[368130134,1751034641397,-460.0,0.00019178,2]
[368130135,1751034641406,-460.0,0.00019178,2]
[368130136,1751034641416,-460.0,0.00019178,2]
[368130137,1751034641425,-460.0,0.00019178,2]
[368130139,1751034641434,-460.0,0.00019178,2]
[368130141,1751034641443,-460.0,0.00019178,2]
[368130142,1751034641453,-460.0,0.00019178,2]
[368130144,1751034641462,-460.0,0.00019178,2]
[368130145,1751034641471,-460.0,0.00019178,2]
[368130147,1751034641480,-476.59934335,0.00019178,2]
[368130148,1751034641491,-460.0,0.00019178,2]
[368130149,1751034641502,-460.0,0.00019178,2]
[368130150,1751034641516,-460.0,0.00019178,2]
[368130151,1751034641525,-463.81931018,0.00019178,2]
[368130152,1751034641535,-460.0,0.00019178,2]
[368130153,1751034641548,-460.0,0.00019178,2]
[368130154,1751034641558,-460.0,0.00019178,2]
[368130155,1751034641567,-460.0,0.00019178,2]
[368130156,1751034641576,-460.0,0.00019178,2]
[368130157,1751034641587,-481.18,0.00019178,2]
[368130158,1751034641596,-697.08,0.00019178,2]
[368130159,1751034641606,-460.0,0.00019178,2]
[368130160,1751034641616,-528.92,0.00019178,2]
[368130161,1751034641625,-460.0,0.00019178,2]
[368130162,1751034641635,-460.0,0.00019178,2]
[368130163,1751034641645,-460.0,0.00019178,2]
[368130164,1751034641655,-460.0,0.00019178,2]
[368130165,1751034641664,-434.89195285,0.00019178,2]
[368130166,1751034641673,-460.0,0.00019178,2]
[368130167,1751034641683,-460.0,0.00019178,2]
[368130168,1751034641691,-460.0,0.00019178,2]
[368130169,1751034641701,-460.0,0.00019178,2]
[368130170,1751034641711,-460.0,0.00019178,2]
[368130171,1751034641720,-460.0,0.00019178,2]
[368130172,1751034641730,-460.0,0.00019178,2]
[368130173,1751034641740,-846.42,0.00019178,2]
[368130174,1751034641749,-460.0,0.00019178,2]
[368130175,1751034641759,-1963.31,0.00019178,2]
[368130176,1751034641768,-460.0,0.00019178,2]
[368130177,1751034641777,-460.0,0.00019178,2]
[368130178,1751034641787,-460.0,0.00019178,2]
[368130179,1751034641796,-460.0,0.00019178,2]
[368130180,1751034641805,-460.0,0.00019178,2]
[368130181,1751034641815,-857.96,0.00019178,2]
[368130182,1751034641824,-460.0,0.00019178,2]
[368130183,1751034641833,-460.0,0.00019178,2]
[368130184,1751034641842,-460.0,0.00019178,2]
[368130185,1751034641852,-460.0,0.00019178,2]
[368130186,1751034641862,-460.0,0.00019178,2]
[368130187,1751034641871,-460.0,0.00019178,2]
[368130188,1751034641881,-460.0,0.00019178,2]
[368130189,1751034641891,-460.0,0.00019178,2]
[368130190,1751034641901,-460.0,0.00019178,2]
[368130191,1751034641911,-464.0722036,0.00019178,2]
[368130192,1751034641920,-460.0,0.00019178,2]
[368130193,1751034641930,-460.0,0.00019178,2]
[368130194,1751034641940,-500.0,0.00019178,2]
[368130195,1751034641950,-460.0,0.00019178,2]
[368130196,1751034641959,-460.0,0.00019178,2]
[368130197,1751034641969,-460.0,0.00019178,2]
[368130198,1751034641979,-460.0,0.00019178,2]
[368130199,1751034641988,-500.0,0.00019178,2]
[368130200,1751034641998,-460.0,0.00019178,2]
[368130201,1751034642008,-1356.71,0.00019178,2]
[368130202,1751034642018,-460.0,0.00019178,2]
[368130203,1751034642027,-460.0,0.00019178,2]
[368130204,1751034642037,-460.0,0.00019178,2]
[368130205,1751034642046,-500.0,0.00019178,2]
[368130206,1751034642056,-500.0,0.00019178,2]
[368130207,1751034642067,-500.0,0.00019178,2]
[368130208,1751034642078,-460.0,0.00019178,2]
[368130209,1751034642088,-500.0,0.00019178,2]
[368130210,1751034642098,-573.95,0.00019178,2]
[368130211,1751034642108,-460.0,0.00019178,2]
[368130212,1751034642117,-460.0,0.00019178,2]
[368130213,1751034642127,-460.0,0.00019178,2]
[368130214,1751034642136,-460.0,0.00019178,2]
[368130215,1751034642146,-460.0,0.00019178,2]
[368130216,1751034642156,-460.0,0.00019178,2]
[368130217,1751034642165,-460.0,0.00019178,2]
[368130218,1751034642175,-460.0,0.00019178,2]
[368130219,1751034642185,-816.52,0.00019178,2]
[368130220,1751034642194,-460.0,0.00019178,2]
[368130221,1751034642204,-460.0,0.00019178,2]
[368130222,1751034642214,-460.0,0.00019178,2]
[368130223,1751034642223,-460.0,0.00019178,2]
[368130224,1751034642233,-1640.15,0.00019178,2]
[368130225,1751034642243,-460.0,0.00019178,2]
[368130226,1751034642253,-460.0,0.00019178,2]
[368130227,1751034642262,-460.0,0.00019178,2]
[368130228,1751034642272,-460.0,0.00019178,2]
[368130229,1751034642281,-460.0,0.00019178,2]
[368130230,1751034642291,-534.17,0.00019178,2]
[368130231,1751034642300,-474.85,0.00019178,2]
[368130232,1751034642310,-460.0,0.00019178,2]
[368130233,1751034642319,-460.0,0.00019178,2]
[368130234,1751034642329,-1671.8,0.00019178,2]
[368130235,1751034642339,-460.0,0.00019178,2]
[368130236,1751034642348,-460.0,0.00019178,2]
[368130237,1751034642357,-467.34885094,0.00019178,2]
[368130238,1751034642367,-498.28772256,0.00019178,2]
[368130239,1751034642376,-207.193403,0.00019178,2]
[368130240,1751034642385,-32684.3735516,0.00019178,2]
[368130241,1751034642394,-100000.0,0.00019329,2]
[368130242,1751034642404,-639.28411025,0.00019351,2]
[368130243,1751034642413,-500.0,0.00019451,2]
[368130244,1751034642423,-500.0,0.00019451,2]
[368130245,1751034642432,-437.94983703,0.00019452,2]
[368130246,1751034642441,-556.31425497,0.00019452,2]
[368130247,1751034642450,-460.0,0.00019452,2]
[368130248,1751034642460,-460.0,0.00019452,2]
[368130249,1751034642469,-460.0,0.00019452,2]
[368130250,1751034642478,-249.69076425,0.00019452,2]
[368130251,1751034642488,-460.0,0.00019452,2]
[368130252,1751034642497,-460.0,0.00019452,2]
[368130253,1751034642507,-460.0,0.00019452,2]
[368130254,1751034642516,-460.0,0.00019452,2]
[368130255,1751034642526,-460.0,0.00019452,2]
[368130256,1751034642536,-571.55139027,0.00019452,2]
[368130257,1751034642549,-460.0,0.00019452,2]
[368130258,1751034642558,-460.0,0.00019452,2]
[368130259,1751034642568,-460.0,0.00019452,2]
[368130260,1751034642578,-460.0,0.00019452,2]
[368130261,1751034642588,-197.45688528,0.00019452,2]
[368130262,1751034642597,-460.0,0.00019452,2]
[368130263,1751034642606,-422.1540039,0.00019452,2]
[368130264,1751034642728,-460.0,0.00019452,2]
[368130265,1751034642738,-460.0,0.00019452,2]
[368130266,1751034642747,-460.0,0.00019452,2]
[368130267,1751034642757,-534.15,0.00019452,2]
[368130268,1751034642767,-460.0,0.00019452,2]
[368130269,1751034642776,-460.0,0.00019452,2]
[368130270,1751034642785,-460.0,0.00019452,2]
[368130271,1751034642795,-461.46956662,0.00019452,2]
[368130272,1751034642804,-460.0,0.00019452,2]
[368130273,1751034642814,-460.0,0.00019452,2]
[368130274,1751034642823,-460.0,0.00019452,2]
[368130275,1751034642832,-460.0,0.00019452,2]
[368130276,1751034642841,-460.0,0.00019452,2]
[368130277,1751034642851,-460.0,0.00019452,2]
[368130278,1751034642860,-460.0,0.00019452,2]
[368130279,1751034642870,-460.0,0.00019452,2]
[368130280,1751034642879,-460.0,0.00019452,2]
[368130281,1751034642888,-460.0,0.00019452,2]
[368130282,1751034642897,-460.0,0.00019452,2]
[368130283,1751034642906,-460.0,0.00019452,2]
[368130284,1751034642916,-460.0,0.00019452,2]
[368130285,1751034642925,-460.0,0.00019452,2]
[368130286,1751034642935,-460.0,0.00019452,2]
[368130287,1751034642945,-208.4586394,0.00019452,2]
[368130288,1751034642954,-545.1987383,0.00019452,2]
[368130289,1751034642963,-360.0,0.00019452,2]
[368130290,1751034642974,-460.0,0.00019452,2]
[368130291,1751034642984,-460.0,0.00019452,2]
[368130292,1751034642993,-461.60995275,0.00019452,2]
[368130293,1751034643003,-460.0,0.00019452,2]
[368130294,1751034643013,-460.0,0.00019452,2]
[368130295,1751034643022,-460.0,0.00019452,2]
[368130296,1751034643032,-460.0,0.00019452,2]
[368130297,1751034643042,-460.0,0.00019452,2]
[368130298,1751034643051,-460.0,0.00019452,2]
[368130299,1751034643061,-460.0,0.00019452,2]
[368130300,1751034643071,-1197.69,0.00019452,2]
[368130301,1751034643081,-460.0,0.00019452,2]
[368130302,1751034643090,-194.05,0.00019452,2]
[368130303,1751034643099,-526.86,0.00019452,2]
[368130304,1751034643108,-460.0,0.00019452,2]
[368130305,1751034643117,-578.62,0.00019452,2]
[368130306,1751034643127,-249.28088236,0.00019452,2]
[368130308,1751034643136,-851.03,0.00019452,2]
[368130309,1751034643146,-460.0,0.00019452,2]
[368130311,1751034643155,-460.0,0.00019452,2]
[368130312,1751034643165,-460.0,0.00019452,2]
[368130313,1751034643174,-460.0,0.00019452,2]
[368130314,1751034643183,-460.0,0.00019452,2]
[368130315,1751034643193,-460.0,0.00019452,2]
[368130316,1751034643202,-460.0,0.00019452,2]
[368130317,1751034643212,-460.0,0.00019452,2]
[368130318,1751034643221,-1948.1,0.00019452,2]
[368130319,1751034643231,-406.32614582,0.00019452,2]
[368130320,1751034643241,-460.0,0.00019452,2]
[368130321,1751034643250,-460.0,0.00019452,2]
[368130322,1751034643260,-460.0,0.00019452,2]
[368130323,1751034643269,-460.0,0.00019452,2]
[368130324,1751034643279,-460.0,0.00019452,2]
[368130325,1751034643289,-460.0,0.00019452,2]
[368130326,1751034643299,-460.0,0.00019452,2]
[368130327,1751034643309,-697.08,0.00019452,2]
[368130328,1751034643318,-528.92,0.00019452,2]
[368130330,1751034643328,-460.0,0.00019452,2]
[368130331,1751034643337,-277.8,0.00019452,2]
[368130332,1751034643346,-460.0,0.00019452,2]
[368130333,1751034643355,-460.0,0.00019452,2]
[368130334,1751034643364,-460.0,0.00019452,2]
[368130335,1751034643373,-846.42,0.00019452,2]
[368130336,1751034643383,-460.0,0.00019452,2]
[368130337,1751034643392,-1963.31,0.00019452,2]
[368130338,1751034643402,-358.75722486,0.00019452,2]
[368130339,1751034643412,-460.0,0.00019452,2]
[368130340,1751034643421,-460.0,0.00019452,2]
[368130341,1751034643431,-857.96,0.00019452,2]
[368130343,1751034643440,-460.0,0.00019452,2]
[368130345,1751034643450,-500.0,0.00019452,2]
[368130348,1751034643459,-460.0,0.00019452,2]
[368130351,1751034643469,-460.0,0.00019452,2]
[368130354,1751034643478,-460.0,0.00019452,2]
[368130356,1751034643487,-461.01546838,0.00019452,2]
[368130358,1751034643497,-460.0,0.00019452,2]
[368130360,1751034643506,-1356.71,0.00019452,2]
[368130362,1751034643517,-460.0,0.00019452,2]
[368130363,1751034643526,-460.0,0.00019452,2]
[368130365,1751034643536,-460.0,0.00019452,2]
[368130367,1751034643550,-460.0,0.00019452,2]
[368130369,1751034643560,-460.0,0.00019452,2]
[368130371,1751034643569,-460.0,0.00019452,2]
[368130373,1751034643579,-460.0,0.00019452,2]
[368130375,1751034643589,-355.96625459,0.00019452,2]
[368130377,1751034643598,-460.0,0.00019452,2]
[368130379,1751034643608,-460.0,0.00019452,2]
[368130381,1751034643618,-816.52,0.00019452,2]
[368130383,1751034643628,-460.0,0.00019452,2]
[368130385,1751034643637,-460.0,0.00019452,2]
[368130387,1751034643647,-460.0,0.00019452,2]
[368130389,1751034643657,-460.0,0.00019452,2]
[368130391,1751034643667,-1640.15,0.00019452,2]
[368130393,1751034643676,-460.0,0.00019452,2]
[368130395,1751034643685,-460.0,0.00019452,2]
[368130397,1751034643695,-460.0,0.00019452,2]
[368130399,1751034643704,-474.85,0.00019452,2]
[368130401,1751034643714,-1671.8,0.00019452,2]
[368130403,1751034643724,-460.0,0.00019452,2]
[368130405,1751034643733,-460.0,0.00019452,2]
[368130406,1751034643742,-500.0,0.00019687,2]
[368130408,1751034643752,-1000.0,0.00019721,2]
[368130410,1751034643762,-500.0,0.00019725,2]
[368130411,1751034643771,-500.0,0.00019725,2]
[368130412,1751034643781,-460.0,0.00019726,2]
[368130413,1751034643790,-460.0,0.00019726,2]
[368130414,1751034643799,-462.2,0.00019726,2]
[368130415,1751034643809,-460.0,0.00019726,2]
[368130416,1751034643819,-460.0,0.00019726,2]
[368130417,1751034643828,-389.29355504,0.00019726,2]
[368130418,1751034643837,-460.0,0.00019726,2]
[368130419,1751034643847,-523.16,0.00019726,2]
[368130420,1751034643857,-307.0423032,0.00019726,2]
[368130421,1751034643866,-460.0,0.00019726,2]
[368130422,1751034643876,-463.52287797,0.00019726,2]
[368130423,1751034643885,-583.93090182,0.00019726,2]
[368130424,1751034643895,-460.0,0.00019726,2]
[368130425,1751034643904,-460.0,0.00019726,2]
[368130426,1751034643913,-460.0,0.00019726,2]
[368130427,1751034643923,-460.0,0.00019726,2]
[368130428,1751034643932,-460.0,0.00019726,2]
[368130429,1751034643941,-460.0,0.00019726,2]
[368130430,1751034643951,-460.0,0.00019726,2]
[368130431,1751034643961,-460.0,0.00019726,2]
[368130432,1751034643971,-460.0,0.00019726,2]
[368130433,1751034643980,-460.0,0.00019726,2]
[368130434,1751034643990,-460.0,0.00019726,2]
[368130435,1751034644000,-1197.69,0.00019726,2]
[368130436,1751034644009,-526.86,0.00019726,2]
[368130437,1751034644019,-460.0,0.00019726,2]
[368130438,1751034644028,-578.62,0.00019726,2]
[368130439,1751034644037,-851.03,0.00019726,2]
[368130440,1751034644047,-460.0,0.00019726,2]
[368130441,1751034644056,-460.0,0.00019726,2]
[368130442,1751034644067,-460.0,0.00019726,2]
[368130444,1751034644077,-1948.1,0.00019726,2]
[368130445,1751034644087,-460.0,0.00019726,2]
[368130446,1751034644096,-460.0,0.00019726,2]
[368130447,1751034644105,-460.0,0.00019726,2]
[368130448,1751034644115,-460.0,0.00019726,2]
[368130449,1751034644125,-460.0,0.00019726,2]
[368130450,1751034644134,-460.0,0.00019726,2]
[368130451,1751034644143,-697.08,0.00019726,2]
[368130452,1751034644152,-528.92,0.00019726,2]
[368130453,1751034644162,-460.0,0.00019726,2]
[368130455,1751034644171,-460.0,0.00019726,2]
[368130457,1751034644181,-846.42,0.00019726,2]
[368130458,1751034644190,-1963.31,0.00019726,2]
[368130460,1751034644199,-460.0,0.00019726,2]
[368130462,1751034644208,-857.96,0.00019726,2]
[368130464,1751034644218,-460.0,0.00019726,2]
[368130465,1751034644230,-460.0,0.00019726,2]
[368130466,1751034644239,-460.0,0.00019726,2]
[368130467,1751034644248,-460.0,0.00019726,2]
[368130468,1751034644258,-1356.71,0.00019726,2]
[368130469,1751034644267,-460.0,0.00019726,2]
[368130470,1751034644276,-460.0,0.00019726,2]
[368130471,1751034644285,-460.0,0.00019726,2]
[368130472,1751034644295,-460.0,0.00019726,2]
[368130473,1751034644304,-460.0,0.00019726,2]
[368130474,1751034644313,-460.0,0.00019726,2]
[368130475,1751034644322,-460.0,0.00019726,2]
[368130476,1751034644332,-816.52,0.00019726,2]
[368130477,1751034644341,-460.0,0.00019726,2]
[368130478,1751034644350,-460.0,0.00019726,2]
[368130479,1751034644360,-460.0,0.00019726,2]
[368130480,1751034644369,-460.0,0.00019726,2]
[368130481,1751034644378,-1640.15,0.00019726,2]
[368130482,1751034644387,-460.0,0.00019726,2]
[368130483,1751034644396,-460.0,0.00019726,2]
[368130484,1751034644405,-460.0,0.00019726,2]
[368130485,1751034644415,-474.85,0.00019726,2]
[368130486,1751034644424,-1671.8,0.00019726,2]
[368130487,1751034644433,-460.0,0.00019726,2]
[368130488,1751034644443,-500.0,0.00019732,2]
[368130489,1751034644452,-500.0,0.00019773,2]
[368130490,1751034644461,-5997.8289046,0.000199,2]
[368130491,1751034644471,-500.0,0.00019998,2]
[368130492,1751034644480,-500.0,0.00019999,2]
[368130493,1751034644489,-202.88,0.0002,2]
[368130494,1751034644498,-460.0,0.0002,2]
[368130495,1751034644508,-460.0,0.0002,2]
[368130496,1751034644517,-460.0,0.0002,2]
[368130497,1751034644526,-460.0,0.0002,2]
[368130498,1751034644535,-460.0,0.0002,2]
[368130499,1751034644547,-460.0,0.0002,2]
[368130500,1751034644558,-460.0,0.0002,2]
[368130501,1751034644567,-460.0,0.0002,2]
[368130502,1751034644576,-460.0,0.0002,2]
[368130503,1751034644586,-460.0,0.0002,2]
[368130504,1751034644595,-460.0,0.0002,2]
[368130505,1751034644604,-1197.69,0.0002,2]
[368130506,1751034644615,-526.86,0.0002,2]
[368130507,1751034644624,-460.0,0.0002,2]
[368130508,1751034644633,-578.62,0.0002,2]
[368130509,1751034644642,-851.03,0.0002,2]
[368130510,1751034644652,-460.0,0.0002,2]
[368130511,1751034644661,-460.0,0.0002,2]
[368130512,1751034644670,-1948.1,0.0002,2]
[368130513,1751034644679,-460.0,0.0002,2]
[368130514,1751034644689,-460.0,0.0002,2]
[368130515,1751034644698,-460.0,0.0002,2]
[368130516,1751034644707,-413.4130683,0.0002,2]
[368130517,1751034644716,-460.0,0.0002,2]
[368130518,1751034644726,-697.08,0.0002,2]
[368130519,1751034644735,-528.92,0.0002,2]
[368130520,1751034644744,-460.0,0.0002,2]
[368130521,1751034644753,-460.0,0.0002,2]
[368130522,1751034644763,-846.42,0.0002,2]
[368130523,1751034644772,-1963.31,0.0002,2]
[368130524,1751034644781,-460.0,0.0002,2]
[368130525,1751034644791,-857.96,0.0002,2]
[368130526,1751034644800,-460.0,0.0002,2]
[368130527,1751034644809,-460.0,0.0002,2]
[368130528,1751034644819,-460.0,0.0002,2]
[368130529,1751034644828,-460.0,0.0002,2]
[368130530,1751034644837,-1356.71,0.0002,2]
[368130531,1751034644846,-460.0,0.0002,2]
[368130532,1751034644856,-460.0,0.0002,2]
[368130533,1751034644865,-460.0,0.0002,2]
[368130534,1751034644875,-460.0,0.0002,2]
[368130535,1751034644883,-404.46,0.0002,2]
[368130536,1751034644893,-816.52,0.0002,2]
[368130537,1751034644902,-460.0,0.0002,2]
[368130538,1751034644912,-460.0,0.0002,2]
[368130539,1751034644921,-460.0,0.0002,2]
[368130540,1751034644930,-460.0,0.0002,2]
[368130541,1751034644940,-1640.15,0.0002,2]
[368130542,1751034644951,-500.32406015,0.0002,2]
[368130543,1751034644960,-460.0,0.0002,2]
[368130544,1751034644970,-474.85,0.0002,2]
[368130545,1751034644979,-460.0,0.0002,2]
[368130546,1751034644989,-1671.8,0.0002,2]
[368130547,1751034644999,-460.0,0.0002,2]
[368130548,1751034645008,-584.35,0.00020027,2]
[368130549,1751034645018,-5997.82890431,0.00020107,2]
[368130550,1751034645028,-639.28411023,0.00020242,2]
[368130551,1751034645037,-1500.0,0.00020268,2]
[368130552,1751034645047,-460.0,0.00020273,2]
[368130553,1751034645057,-417.58325611,0.00020273,2]
[368130554,1751034645066,-460.0,0.00020273,2]
[368130555,1751034645077,-302.02785927,0.00020273,2]
[368130556,1751034645087,-326.64766857,0.00020273,2]
[368130557,1751034645096,-460.0,0.00020273,2]
[368130558,1751034645106,-460.0,0.00020273,2]
[368130559,1751034645116,-460.0,0.00020273,2]
[368130560,1751034645126,-460.0,0.00020273,2]
[368130561,1751034645136,-1197.69,0.00020273,2]
[368130562,1751034645146,-526.86,0.00020273,2]
[368130563,1751034645156,-460.0,0.00020273,2]
[368130564,1751034645165,-578.62,0.00020273,2]
[368130565,1751034645175,-851.03,0.00020273,2]
[368130566,1751034645184,-460.0,0.00020273,2]
[368130567,1751034645193,-460.0,0.00020273,2]
[368130568,1751034645202,-1948.1,0.00020273,2]
[368130569,1751034645211,-460.0,0.00020273,2]
[368130570,1751034645220,-460.0,0.00020273,2]
[368130571,1751034645230,-460.0,0.00020273,2]
[368130572,1751034645239,-460.0,0.00020273,2]
[368130573,1751034645248,-697.08,0.00020273,2]
[368130574,1751034645257,-528.92,0.00020273,2]
[368130575,1751034645266,-543.43576769,0.00020273,2]
[368130576,1751034645275,-460.0,0.00020273,2]
[368130577,1751034645284,-846.42,0.00020273,2]
[368130578,1751034645293,-1963.31,0.00020273,2]
[368130579,1751034645303,-460.0,0.00020273,2]
[368130580,1751034645312,-857.96,0.00020273,2]
[368130581,1751034645321,-460.0,0.00020273,2]
[368130582,1751034645330,-460.0,0.00020273,2]
[368130583,1751034645339,-460.0,0.00020273,2]
[368130584,1751034645348,-460.0,0.00020273,2]
[368130585,1751034645357,-1356.71,0.00020273,2]
[368130586,1751034645366,-460.0,0.00020273,2]
[368130587,1751034645375,-460.0,0.00020273,2]
[368130588,1751034645384,-460.0,0.00020273,2]
[368130589,1751034645393,-816.52,0.00020273,2]
[368130590,1751034645402,-460.0,0.00020273,2]
[368130591,1751034645412,-460.0,0.00020273,2]
[368130592,1751034645421,-460.0,0.00020273,2]
[368130593,1751034645430,-1640.15,0.00020273,2]
[368130594,1751034645439,-460.0,0.00020273,2]
[368130595,1751034645458,-474.85,0.00020273,2]
[368130596,1751034645468,-460.0,0.00020273,2]
[368130597,1751034645478,-1671.8,0.00020273,2]
[368130598,1751034645488,-460.0,0.00020273,2]
[368130599,1751034645498,-1000.0,0.0002028,2]
[368130600,1751034645507,-5997.82890431,0.00020314,3]
[368130601,1751034645517,-151.0,0.00020356,2]
[368130602,1751034645527,-151.0999679,0.00020356,2]
[368130603,1751034645537,-169.12576372,0.00020521,3]
[368130604,1751034645550,-5997.82890431,0.00020521,3]
[368130605,1751034645559,-460.0,0.00020547,2]
[368130606,1751034645569,-460.0,0.00020547,2]
[368130607,1751034645578,-460.0,0.00020547,2]
[368130608,1751034645588,-1197.69,0.00020547,2]
[368130609,1751034645597,-526.86,0.00020547,2]
[368130610,1751034645607,-460.0,0.00020547,2]
[368130611,1751034645617,-578.62,0.00020547,2]
[368130612,1751034645627,-851.03,0.00020547,2]
[368130613,1751034645636,-460.0,0.00020547,2]
[368130614,1751034645646,-460.0,0.00020547,2]
[368130615,1751034645656,-1948.1,0.00020547,2]
[368130616,1751034645666,-460.0,0.00020547,2]
[368130617,1751034645675,-460.0,0.00020547,2]
[368130618,1751034645834,-460.0,0.00020547,2]
[368130619,1751034645845,-460.0,0.00020547,2]
[368130620,1751034645854,-697.08,0.00020547,2]
[368130621,1751034645864,-528.92,0.00020547,2]
[368130622,1751034645873,-460.0,0.00020547,2]
[368130623,1751034645882,-846.42,0.00020547,2]
[368130624,1751034645891,-1963.31,0.00020547,2]
[368130625,1751034645901,-460.0,0.00020547,2]
[368130626,1751034645910,-857.96,0.00020547,2]
[368130627,1751034645920,-460.0,0.00020547,2]
[368130628,1751034645930,-460.0,0.00020547,2]
[368130629,1751034645940,-460.0,0.00020547,2]
[368130630,1751034645949,-460.0,0.00020547,2]
[368130631,1751034645958,-1356.71,0.00020547,2]
[368130632,1751034645968,-460.0,0.00020547,2]
[368130633,1751034645977,-460.0,0.00020547,2]
[368130634,1751034645987,-460.0,0.00020547,2]
[368130635,1751034645996,-816.52,0.00020547,2]
[368130636,1751034646005,-460.0,0.00020547,2]
[368130637,1751034646016,-460.0,0.00020547,2]
[368130638,1751034646025,-460.0,0.00020547,2]
[368130639,1751034646034,-1640.15,0.00020547,2]
[368130640,1751034646043,-460.0,0.00020547,2]
[368130641,1751034646053,-474.85,0.00020547,2]
[368130642,1751034646062,-460.0,0.00020547,2]
[368130643,1751034646071,-1671.8,0.00020547,2]
[368130644,1751034646083,-460.0,0.00020547,2]
[368130645,1751034646092,-2827.99,0.000206,2]
[368130646,1751034646102,-213.75309343,0.00020728,3]
[368130647,1751034646111,-5997.82890431,0.00020728,3]
[368130648,1751034646120,-2000.0,0.00020816,2]
[368130650,1751034646129,-460.0,0.00020821,2]
[368130651,1751034646141,-460.0,0.00020821,2]
[368130652,1751034646151,-460.0,0.00020821,2]
[368130653,1751034646160,-1197.69,0.00020821,2]
[368130654,1751034646170,-526.86,0.00020821,2]
[368130655,1751034646180,-460.0,0.00020821,2]
[368130656,1751034646190,-578.62,0.00020821,2]
[368130657,1751034646199,-851.03,0.00020821,2]
[368130658,1751034646209,-460.0,0.00020821,2]